Cogmind - Beta 16.1 @@@ ROGUE MODE // 2026.02.26 @ 06:53:51 Player: Rocket Result: Self-destructed Performance ------------- Evolutions (4) 2000 Regions Visited (10) 2000 Robots Destroyed (107) 535 Value Destroyed (2819) 2819 Prototype IDs (1) 20 Alien Tech Used (0) 0 Bonus (635) 635 TOTAL SCORE: 8009 Bonus ------- High Alert Combat Kills 228 Follower Combat Kills 407 Cogmind --------- Core Integrity 451/850 Matter 250/300 Energy 100/100 System Corruption 2% Temperature Cool (0) Movement Core (50) Location -6/Factory Parts ------- > --- POWER (1) -------- (None) > --- PROPULSION (4) --- (None) > --- UTILITY (8) ------ Improved Signal Interpreter Improved Utility Shielding Hacking Suite Hacking Suite > --- WEAPON (2) ------- (None) > --- INVENTORY (5) ---- Cargo Storage Unit Large Matter Pod (150) Magnetic Acceleration Cannon Rocket Launcher Peak State ------------ > --- POWER ------------ Fission Core > --- PROPULSION ------- Medium Treads Aluminum Leg Carbon-fiber Leg Carbon-fiber Leg > --- UTILITY ---------- Huge Storage Unit Advanced Sensor Array Signal Interpreter Improved Signal Interpreter Advanced Terrain Scanner Advanced Targeting Computer Improved Utility Shielding Hacking Suite > --- WEAPON ----------- Magnetic Acceleration Cannon Katana > --- INVENTORY -------- Light Deuterium Engine Light Deuterium Engine Light Nuclear Core Aluminum Leg Advanced Heat Sink High-capacity Storage Unit Compact Battery Large Matter Pod Large Matter Pod High-capacity Matter Pod Structural Scanner Improved Terrain Scanner Improved Utility Shielding Improved Utility Shielding Layered Medium Armor Plating High-powered Tractor Beam Drone Bay Magnetic Acceleration Cannon Advanced EMP Blaster Proton Missile Launcher Rocket Launcher Remote Datajack Plasma Cutter Katana [Rating: 54] Favorites ----------- Power Light Ion Engine Engine Light Ion Engine Power Core Fission Core Propulsion Light Treads Treads Light Treads Leg Carbon-fiber Leg Wheel Wheel Utility Signal Interpreter Device Advanced Terrain Scanner Storage High-capacity Storage Unit Processor Signal Interpreter Hackware Hacking Suite Protection Hardened Light Armor Plating Weapon Katana Energy Gun EM Shotgun Energy Cannon Proton Cannon Ballistic Gun Light Assault Rifle Ballistic Cannon Advanced Assault Cannon Launcher Advanced EMP Blaster Impact Weapon Hammer Slashing Weapon Katana Build | -11 -10 -10 -9 -9 -9 -8 -8 -8 -8 -6 ------- Run | Yrd Mat Min Mat Min Exi Min Mat Sto Rec Fac Slots Evolved 8 | . . . 2 . . . 2 . . 4 Power . | . . . . . . . . . . . Propulsion 2 | . . . 1 . . . 1 . . . Utility 6 | . . . 1 . . . 1 . . 4 Weapon . | . . . . . . . . . . . Parts Attached 108 | 8 9 2 9 1 1 8 19 25 1 25 Power 11 | 2 2 . . . . 1 3 2 . 1 Engine 7 | 2 2 . . . . . 3 . . . Core 4 | . . . . . . 1 . 2 . 1 Reactor . | . . . . . . . . . . . Propulsion 35 | 2 1 2 2 . . . 8 13 1 6 Treads 8 | . . . 2 . . . 3 2 . 1 Leg 8 | . . . . . . . . 6 1 1 Wheel 19 | 2 1 2 . . . . 5 5 . 4 Hover . | . . . . . . . . . . . Flight . | . . . . . . . . . . . Utility 40 | 2 3 . 4 1 1 1 6 7 . 15 Device 9 | 1 . . . . . . 1 2 . 5 Storage 6 | 1 1 . . 1 1 . . 1 . 1 Processor 7 | . . . 2 . . . 1 1 . 3 Hackware 3 | . . . . . . . 1 . . 2 Protection 15 | . 2 . 2 . . 1 3 3 . 4 Artifact . | . . . . . . . . . . . Weapon 22 | 2 3 . 3 . . 6 2 3 . 3 Energy Gun 6 | 1 1 . 2 . . 1 . 1 . . Energy Cannon 3 | . . . 1 . . . 1 . . 1 Ballistic Gun 4 | 1 1 . . . . 2 . . . . Ballistic Cannon 3 | . . . . . . 1 . . . 2 Launcher 2 | . . . . . . 1 . 1 . . Special Weapon . | . . . . . . . . . . . Impact Weapon 1 | . 1 . . . . . . . . . Slashing Weapon 3 | . . . . . . 1 1 1 . . Piercing Weapon . | . . . . . . . . . . . Special Melee Weapon . | . . . . . . . . . . . Unidentified Prototypes 1 | . . . . . . . . 1 . . Corrupted Parts 3 | . . 1 . . . . 2 . . . System Corruption 5 | . . 2 . . . . 3 . . . Parts Lost 34 | . 1 . 2 . . 2 10 9 . 10 Power 5 | . . . 1 . . 1 1 2 . . Propulsion 16 | . . . 1 . . 1 3 4 . 7 Utility 6 | . 1 . . . . . 2 2 . 1 Weapon 7 | . . . . . . . 4 1 . 2 Highest Loss Streak 8 | . 1 . 2 . . 1 4 5 . 8 To Critical Strikes 1 | . . . . . . . 1 . . . Average Backups 17 | 2 7 14 13 15 16 19 17 19 20 23 Power 1 | . 1 1 . . . . 1 . . 2 Propulsion 1 | 1 2 3 2 1 1 . 2 1 1 1 Utility 10 | . 2 8 7 9 9 10 9 13 14 13 Weapon 3 | . 1 2 2 4 5 6 2 3 4 4 Tool/Special . | . . . . . . . . . . . Unused Backups 36 | . 3 . 1 . . . 7 4 1 20 Power 3 | . . . . . . . 1 . . 2 Propulsion 2 | . 1 . . . . . . 1 . . Utility 19 | . . . 1 . . . 4 2 1 11 Weapon 10 | . 2 . . . . . 2 1 . 5 Tool/Special 2 | . . . . . . . . . . 2 Average Slot Usage (%) 95 | . 96 100 90 100 100 99 86 92 100 98 Engine 5 | . 14 14 11 11 11 . 8 3 . . Core 3 | . . . . . . 9 . 4 9 5 Treads 8 | . . . 1 22 22 22 24 4 . 1 Leg 10 | . . . . . . . . 12 36 20 Wheel 11 | . 28 28 22 11 11 11 8 16 . 3 Device 4 | . 2 . . . . . . 1 . 13 Storage 9 | . 14 14 11 11 11 11 9 9 9 5 Processor 12 | . . . 11 11 11 11 14 14 18 18 Hackware 1 | . . . . . . . 2 . . 5 Protection 8 | . 7 14 11 11 11 11 8 8 9 6 Energy Gun 6 | . 14 14 15 22 22 7 . 1 . . Ballistic Gun 2 | . 11 14 2 . . 8 . . . . Ballistic Cannon 1 | . . . . . . 2 2 . . 4 Slashing Weapon 5 | . . . . . . 2 4 12 18 6 Peak Build Rating 54 | 9 9 8 15 15 15 24 26 28 29 54 Average Rating 26 | 5 7 8 10 15 15 21 20 24 28 48 On Entrance 15 | . 9 8 8 15 15 15 22 20 28 29 Avg Prop Armor Cover (%) 13 | . . . 8 15 15 15 16 8 . 12 Naked Turns . | . . . . . . . . . . . Heaviest Build 111 | 13 32 27 34 54 54 62 61 65 50 111 Greatest Support 80 | 32 32 26 42 16 16 16 80 50 53 53 Greatest Overweight (x) 10 | . 1 1 2 3 3 3 5 4 . 10 Average Overweight (x) 1 | . . 1 . 2 3 3 1 . . 1 Largest Inventory Capacity 25 | 8 15 15 15 20 20 20 20 20 20 25 Average Capacity 19 | 7 9 15 15 18 20 20 20 20 20 24 Most Carried 25 | 4 13 15 15 17 18 20 20 20 20 25 Average Carried 17 | 3 7 14 13 15 16 19 17 19 20 23 Final Capacity 20 | 8 15 15 15 20 20 20 20 20 20 5 Final Carried 20 | 4 13 15 13 17 17 20 20 20 20 5 Class Distribution -------------------- 46% | Mutant 13% | Scavenger-Mutant 11% | Commander-Assassin 10% | Commander-Gladiator 9% | Scavenger-Assassin 4% | Scavenger-Gladiator Dominant Class ---------------- Mutant | -10/Materials Mutant | -10/Mines Mutant | -9/Materials Mutant | -9/Mines Mutant | -9/Exiles Mutant | -8/Mines Mutant | -8/Materials Scavenger-Mutant | -8/Storage Commander-Gladiator | -8/Recycling Commander-Assassin | -6/Factory Resources | -11 -10 -10 -9 -9 -9 -8 -8 -8 -8 -6 ----------- Run | Yrd Mat Min Mat Min Exi Min Mat Sto Rec Fac Matter Collected 3233 | 271 147 133 133 29 300 415 568 429 202 606 Remotely . | . . . . . . . . . . . Salvage Created 3296 | 20 383 100 60 111 . 392 834 1063 . 333 Parts 209 | 3 26 13 3 6 . 22 55 56 . 25 Haulers Intercepted 2 | . . . 1 . . . 1 . . . Recyclers Shooed 5 | . 1 1 1 . . . . 1 . 1 Parts Field Recycled . | . . . . . . . . . . . Retrieved Matter . | . . . . . . . . . . . Parts Self-Destructed . | . . . . . . . . . . . Prevented . | . . . . . . . . . . . Parts Restored . | . . . . . . . . . . . Kills | -11 -10 -10 -9 -9 -9 -8 -8 -8 -8 -6 ------- Run | Yrd Mat Min Mat Min Exi Min Mat Sto Rec Fac Combat Hostiles Destroyed 71 | . 9 4 . 2 . 9 18 23 . 6 Melee 15 | . . . . . . . 3 10 . 2 Guns 22 | . 8 3 . 1 . 8 1 1 . . Cannons 8 | . . . . . . . 4 . . 4 AOE 26 | . 1 1 . 1 . 1 10 12 . . Classes Destroyed 15 | 1 6 . 1 . . 1 2 3 . 1 Worker 9 | . 1 . . . . . 3 3 . 2 Builder 11 | . 2 1 . . . . 4 2 . 2 Tunneler 3 | 1 1 1 . . . . . . . . Hauler 2 | . . . 1 . . . 1 . . . Recycler 6 | . 1 . . . . 2 1 2 . . Mechanic 1 | . . . . . . . . 1 . . Watcher 3 | . 2 . . . . . 1 . . . Swarmer 24 | . 6 4 . . . 7 4 3 . . Grunt 28 | . 3 . . 3 . . 10 10 . 2 Brawler 2 | . . . . . . . . 2 . . Duelist 6 | . . . . . . . 1 5 . . Protector 1 | . . . . . . . . 1 . . Sentry 4 | . . . . . . . 2 2 . . Hunter 5 | . . . . . . 2 1 . . 2 Programmer 2 | . . . . . . . . . . 2 Best Kill Streak 11 | 1 3 2 1 2 . 5 9 11 . 3 Combat Bots Only 9 | . 3 2 . 2 . 4 8 9 . 1 Max Kills in Single Turn 4 | 1 1 1 1 2 . 1 4 3 . 1 Gunslinging . | . . . . . . . . . . . Exploded 4 | . 1 1 . 1 . 1 4 3 . . Melee 1 | . . . . . . . 1 1 . 1 Uniques/NPCs Destroyed . | . . . . . . . . . . . Combat | -11 -10 -10 -9 -9 -9 -8 -8 -8 -8 -6 -------- Run | Yrd Mat Min Mat Min Exi Min Mat Sto Rec Fac Hostile Shots Fired 492 | . 47 8 6 5 . 26 122 72 . 206 Missed 144 | . 9 3 1 1 . 7 32 20 . 71 Hits 348 | . 38 5 5 4 . 19 90 52 . 135 Melee 11 | . . . . . . . 7 4 . . Projectile 337 | . 38 5 5 4 . 19 83 48 . 135 AOE 1 | . . . . . . . . . . 1 Critical Strikes 9 | . 1 . 1 . . . 4 . . 3 Damage Taken 5155 | . 370 40 115 98 . 178 1559 1017 . 1778 Core 1009 | . 74 . 58 . . 42 276 160 . 399 Absorbed by Shields . | . . . . . . . . . . . Redirected to Shielding 90 | . 6 3 5 . . . . . . 76 Regen/Repaired (Parts) 15 | . . . . . . . . 15 . . Core Remaining (%) 66 | 100 . 70 . . . 75 . . 20 . Volleys Fired 199 | 2 39 12 8 3 . 20 57 18 . 40 Largest 2 | 2 2 2 2 2 . 2 1 1 . 1 Hottest 108 | 60 60 60 108 90 . 103 56 45 . 75 Shots Fired 271 | 4 70 23 16 6 . 36 57 19 . 40 Gun 160 | 4 70 23 11 6 . 35 7 4 . . Cannon 82 | . . . 5 . . . 37 . . 40 Launcher 29 | . . . . . . 1 13 15 . . Special . | . . . . . . . . . . . Kinetic 139 | 2 32 12 . . . 26 31 . . 36 Thermal 25 | 2 11 . 5 . . 7 . . . . Explosive 24 | . . . . . . 1 13 10 . . Electromagnetic 83 | . 27 11 11 6 . 2 13 9 . 4 Robot Hit Streak 12 | 3 7 7 7 6 . 12 9 6 . 9 Robot Miss Streak 5 | . 5 3 1 1 . 5 3 1 . 4 Penetration Max . | . . . . . . . . . . . Secondary Targets 2 | . . . . . . 2 . . . . Max Gunslinging Chain 1 | . . . . . . 1 . . . . Shots Hit Robots 241 | 3 42 13 13 6 . 22 53 50 . 39 Core Hits 153 | 1 17 7 3 5 . 13 45 48 . 14 Critical Kills 1 | . . . . . . 1 . . . . Critical Parts Destroyed . | . . . . . . . . . . . Critical Strikes 8 | . . . . . . 2 . 4 . 2 Burn 1 | . . . . . . 1 . . . . Destroy 1 | . . . . . . 1 . . . . Blast 2 | . . . . . . . . . . 2 Sever 4 | . . . . . . . . 4 . . Melee Attacks 131 | . 7 . . . . . 25 51 . 48 Impact 7 | . 7 . . . . . . . . . Slashing 124 | . . . . . . . 25 51 . 48 Piercing . | . . . . . . . . . . . Sneak Attacks 24 | . 2 . . . . . 6 10 . 6 Combat Hostiles . | . . . . . . . . . . . Follow-up Attacks . | . . . . . . . . . . . Damage Inflicted 8842 | 28 657 171 192 219 . 435 2417 3411 . 1312 Guns 1239 | 28 397 128 89 91 . 364 106 36 . . Cannons 1342 | . . . 103 . . . 622 . . 617 Explosions 3073 | . 41 43 . 128 . 71 1061 1729 . . Melee 3188 | . 219 . . . . . 628 1646 . 695 Ramming . | . . . . . . . . . . . Kinetic 1435 | 8 137 30 . . . 252 520 . . 488 Thermal 490 | 20 110 43 103 128 . 86 . . . . Explosive 2544 | . . . . . . 71 1044 1429 . . Electromagnetic 1185 | . 191 98 89 91 . 26 225 336 . 129 Impact 219 | . 219 . . . . . . . . . Slashing 2969 | . . . . . . . 628 1646 . 695 Piercing . | . . . . . . . . . . . Highest Corruption 3 | . . 2 . . . . 3 3 3 2 Average Corruption 2 | . . 2 . . . . 2 3 3 1 Corruption Purged . | . . . . . . . . . . . Corruption Blocked . | . . . . . . . . . . . Effects 37 | . . 3 . . . . 10 16 6 2 Message Errors 11 | . . 2 . . . . 2 5 1 1 Matter Fused 6 | . . . . . . . 3 1 2 . Heat Flow Errors 2 | . . . . . . . 1 1 . . Energy Discharges 2 | . . . . . . . 1 1 . . Parts Fused 1 | . . . . . . . 1 . . . Data Loss (minor) 10 | . . . . . . . 2 5 3 . Data Loss (major) 2 | . . . . . . . . 2 . . Misfires 1 | . . . . . . . . 1 . . Alerts 1 | . . . . . . . . . . 1 Weapon Failures 1 | . . 1 . . . . . . . . Overload Shots . | . . . . . . . . . . . Overflow Damage 376 | . 69 . . . . . 68 160 . 79 Projectiles 1 | . . . . . . . . . . 1 Explosions 41 | . . . . . . . 12 29 . . Melee 334 | . 69 . . . . . 56 131 . 78 Knockbacks 7 | . 1 . . . . . 4 . . 2 Impact 1 | . 1 . . . . . . . . . Kinetic 6 | . . . . . . . 4 . . 2 Secondary . | . . . . . . . . . . . Self-Inflicted Damage 332 | . . . . 43 . . 132 157 . . Shots 12 | . . . . 1 . . 4 7 . . Rammed . | . . . . . . . . . . . Targets Rammed . | . . . . . . . . . . . Kicked . | . . . . . . . . . . . Crushed . | . . . . . . . . . . . Highest Temperature 276 | 20 121 20 162 147 . 276 134 265 . 122 Average Temperature 55 | 15 33 15 55 78 . 149 32 63 . 51 Received Heat Transfer 1500 | . 138 . 45 33 . . 531 324 . 429 Siege Activations . | . . . . . . . . . . . Martial Activations . | . . . . . . . . . . . Shielding Activations . | . . . . . . . . . . . Robots Disrupted . | . . . . . . . . . . . Combat Hostiles . | . . . . . . . . . . . Robots Corrupted 2 | . 2 . . . . . . . . . Combat Hostiles . | . . . . . . . . . . . Parts Fried 4 | . 3 . . 1 . . . . . . Impact Corruptions 3 | . 3 . . . . . . . . . Robots Melted . | . . . . . . . . . . . Combat Hostiles . | . . . . . . . . . . . Parts Melted 1 | . . . . . . . . . . 1 Heat Transferred 757 | 50 150 50 185 100 . 222 . . . . Parts Sabotaged . | . . . . . . . . . . . Parts Stolen . | . . . . . . . . . . . Parts Stripped . | . . . . . . . . . . . Power Chain Reactions 4 | . 1 1 . 1 . . . 1 . . Alert | -11 -10 -10 -9 -9 -9 -8 -8 -8 -8 -6 ------- Run | Yrd Mat Min Mat Min Exi Min Mat Sto Rec Fac Maximum Alert Level 3 | . . . . . . . 1 3 1 . Low Security (%) 76 | 100 100 100 100 100 . 100 36 10 70 100 Level 1 12 | . . . . . . . 63 10 29 . Level 2 6 | . . . . . . . . 50 . . Level 3 3 | . . . . . . . . 29 . . Level 4 . | . . . . . . . . . . . Level 5 . | . . . . . . . . . . . High Security . | . . . . . . . . . . . Max Security . | . . . . . . . . . . . Peak Influence 757 | . 75 86 58 62 . 146 382 757 264 116 Initial 264 | . . 15 25 . . . 25 115 264 14 Average 132 | . 38 41 26 10 . 87 199 554 149 17 Influence Increases 3228 | 5 355 146 183 113 . 246 653 1060 . 467 Destroy 0b10 Robot/C 1700 | . 180 80 100 60 . 180 360 520 . 220 Destroy 0b10 Robot/NC 205 | 5 35 10 15 . . 15 50 45 . 30 Destroy Leader 374 | . 44 20 34 10 . 40 74 90 . 62 Allied During Kill 128 | . . . 19 4 . 5 . 12 . 88 Successful Hack 43 | . 18 . 15 . . . . 10 . . Disable Machine 105 | . 30 . . . . . 15 60 . . Anti-Garrison Action 150 | . . . . . . . . 150 . . Destroy Structure 193 | . 3 6 . 9 . 6 79 53 . 37 Partial Spotted 15 | . . . . . . . . 15 . . Lose Combat Pursuer 315 | . 45 30 . 30 . . 75 105 . 30 Influence Decreases 3228 | 5 316 119 246 73 43 180 444 658 643 501 Entered New Map 745 | . . 24 41 3 43 . 41 160 413 20 Time Decay 1963 | 5 296 95 165 70 . 150 308 368 230 276 Lost Part 320 | . 10 . 20 . . 10 95 90 . 95 Lost Ally 200 | . 10 . 20 . . 20 . 40 . 110 Squads Dispatched 25 | . 4 . 3 1 . . 1 10 . 6 Investigation 7 | . 3 . 2 . . . . 1 . 1 Extermination 2 | . . . . . . . . . . 2 Reinforcement 7 | . 1 . 1 . . . 1 1 . 3 Assault 8 | . . . . 1 . . . 7 . . Garrison 1 | . . . . . . . . 1 . . Intercept . | . . . . . . . . . . . Searches Triggered . | . . . . . . . . . . . Construction Impeded 2 | . . . . . . . . 1 . 1 Haulers Reinforced . | . . . . . . . . . . . Active Scanning Responses . | . . . . . . . . . . . Cargo Convoy Interrupts . | . . . . . . . . . . . Stealth | -11 -10 -10 -9 -9 -9 -8 -8 -8 -8 -6 --------- Run | Yrd Mat Min Mat Min Exi Min Mat Sto Rec Fac Distress Signals 8 | . 2 . . . . . 4 . . 2 Communications Jammed . | . . . . . . . . . . . Distress Signals . | . . . . . . . . . . . Times Spotted 129 | . 19 7 3 4 . 7 29 36 . 24 Peak Tracking Total 9 | . 3 3 2 2 . 3 8 9 . 7 Tactical Retreats 14 | . 2 1 . 1 . . 4 5 . 1 Traps | -11 -10 -10 -9 -9 -9 -8 -8 -8 -8 -6 ------- Run | Yrd Mat Min Mat Min Exi Min Mat Sto Rec Fac Traps Triggered 2 | . 1 . 1 . . . . . . . Indirectly . | . . . . . . . . . . . Trap Hack Attempts . | . . . . . . . . . . . Triggered . | . . . . . . . . . . . Disarmed . | . . . . . . . . . . . Reprogrammed . | . . . . . . . . . . . Reused . | . . . . . . . . . . . Traps Extracted . | . . . . . . . . . . . Installed . | . . . . . . . . . . . Triggered . | . . . . . . . . . . . Machines | -11 -10 -10 -9 -9 -9 -8 -8 -8 -8 -6 ---------- Run | Yrd Mat Min Mat Min Exi Min Mat Sto Rec Fac Machines Disabled 8 | . 2 . . . . . 1 5 . . Max in Single Turn 2 | . 1 . . . . . 1 2 . . Garrison Access 1 | . . . . . . . . 1 . . Machines Repaired . | . . . . . . . . . . . Machines Dismantled . | . . . . . . . . . . . Machines Sabotaged . | . . . . . . . . . . . Overloaded Fab Kills . | . . . . . . . . . . . Hacking | -11 -10 -10 -9 -9 -9 -8 -8 -8 -8 -6 --------- Run | Yrd Mat Min Mat Min Exi Min Mat Sto Rec Fac Machines Accessed 20 | . 5 . 4 . 1 . 1 4 3 2 Terminals 16 | . 5 . 4 . . . . 3 3 1 Fabricators 1 | . . . . . . . . . . 1 Repair Stations 1 | . . . . . . . . 1 . . Recycling Units . | . . . . . . . . . . . Scanalyzers 1 | . . . . . . . 1 . . . Garrison Access . | . . . . . . . . . . . Total Hacks 69 | . 14 . 11 . 23 . 3 9 6 3 Successful 37 | . 3 . 3 . 23 . . 5 1 2 Failed 31 | . 11 . 7 . . . 3 4 5 1 Catastrophic 10 | . 4 . 1 . . . . 2 2 1 Database Lockouts 1 | . . . 1 . . . . . . . Manual 39 | . 14 . 14 . . . . 6 4 1 Terminals 39 | . 14 . 11 . . . . 7 6 1 Fabricators 2 | . . . . . . . . . . 2 Repair Stations 2 | . . . . . . . . 2 . . Recycling Units . | . . . . . . . . . . . Scanalyzers 3 | . . . . . . . 3 . . . Garrison Access . | . . . . . . . . . . . Terminal Hacks 32 | . 2 . 3 . 23 . . 3 1 . Record 25 | . 1 . . . 23 . . . 1 . Part Schematic 2 | . 1 . 1 . . . . . . . Robot Schematic 1 | . . . 1 . . . . . . . Robot Analysis 2 | . . . . . . . . 2 . . Open Door 1 | . . . . . . . . 1 . . Branch Access Points 1 | . . . 1 . . . . . . . Fabricator Hacks 2 | . . . . . . . . . . 2 Load Schematic 1 | . . . . . . . . . . 1 Build 1 | . . . . . . . . . . 1 Repair Station Hacks 2 | . . . . . . . . 2 . . Scan Component 1 | . . . . . . . . 1 . . Repair 1 | . . . . . . . . 1 . . Recycling Unit Hacks . | . . . . . . . . . . . Scanalyzer . | . . . . . . . . . . . Garrison Access Hacks . | . . . . . . . . . . . Unauthorized Hacks 1 | . 1 . . . . . . . . . Terminals 1 | . 1 . . . . . . . . . Assimilate 1 | . 1 . . . . . . . . . Fabricators . | . . . . . . . . . . . Repair Stations . | . . . . . . . . . . . Recycling Units . | . . . . . . . . . . . Scanalyzers . | . . . . . . . . . . . Garrison Access . | . . . . . . . . . . . Data Cores Recovered . | . . . . . . . . . . . Used . | . . . . . . . . . . . Hacking Detections 19 | . 5 . 5 . . . 1 3 3 2 Full Trace Events 10 | . 3 . 3 . . . 1 2 . 1 Feedback Events . | . . . . . . . . . . . Feedback Blocked . | . . . . . . . . . . . Robot Schematics Acquired 1 | . . . 1 . . . . . . . Robots Built . | . . . . . . . . . . . Authchips . | . . . . . . . . . . . Time . | . . . . . . . . . . . Total Robot Build Rating . | . . . . . . . . . . . Part Schematics Acquired 2 | . 1 . 1 . . . . . . . Parts Built 1 | . . . . . . . . . . 1 Authchips . | . . . . . . . . . . . Time 51 | . . . . . . . . . . 51 Total Part Build Rating 1 | . . . . . . . . . . 1 Part Studies Acquired . | . . . . . . . . . . . Parts Repaired 1 | . . . . . . . . 1 . . Time 32 | . . . . . . . . 32 . . Parts Recycled . | . . . . . . . . . . . Recycled Matter . | . . . . . . . . . . . Retrieved Matter . | . . . . . . . . . . . Retrieved Components . | . . . . . . . . . . . Parts Scanalyzed . | . . . . . . . . . . . Part Schematics Acquired . | . . . . . . . . . . . Parts Damaged . | . . . . . . . . . . . Bothacking | -11 -10 -10 -9 -9 -9 -8 -8 -8 -8 -6 ------------ Run | Yrd Mat Min Mat Min Exi Min Mat Sto Rec Fac Used RIF Installer . | . . . . . . . . . . . Robots Hacked . | . . . . . . . . . . . Non-combat . | . . . . . . . . . . . Combat . | . . . . . . . . . . . Robot Hacks Applied . | . . . . . . . . . . . Relay Couplers Released 1 | . . . . . . . . 1 . . Machine Destruction 1 | . . . . . . . . 1 . . Fabnet Peak Effective % . | . . . . . . . . . . . Robots Rewired . | . . . . . . . . . . . Allies Hacked . | . . . . . . . . . . . Hacks Repelled . | . . . . . . . . . . . Allies | -11 -10 -10 -9 -9 -9 -8 -8 -8 -8 -6 -------- Run | Yrd Mat Min Mat Min Exi Min Mat Sto Rec Fac Total Allies 18 | . 1 3 . 2 . . . 12 . . Largest Group 10 | . 1 3 3 2 1 1 . 10 10 10 Highest-Rated Group 173 | . 10 40 40 39 31 31 . 173 173 173 Highest-Rated Ally 31 | . 10 16 16 31 31 31 . 31 29 29 Total Orders 2 | . . . . . . . . . . 2 EXPLORE 1 | . . . . . . . . . . 1 RETURN 1 | . . . . . . . . . . 1 Ally Attacks 191 | . . . 46 9 . 13 . 35 . 88 Total Damage 2407 | . . . 512 84 . 124 . 592 . 1095 Kills 20 | . . . 7 1 . . . 4 . 8 Allies Corrupted 1 | . . . . . . . . . . 1 Allies Melted 1 | . . . . . . . . . . 1 Intel | -11 -10 -10 -9 -9 -9 -8 -8 -8 -8 -6 ------- Run | Yrd Mat Min Mat Min Exi Min Mat Sto Rec Fac Active Infowar (turns) 2070 | 25 112 . . . . . 8 183 . 1742 Sensors 1715 | . . . . . . . . . . 1715 Terrain 1770 | 25 112 . . . . . 8 16 . 1609 Structural 194 | . . . . . . . . 167 . 27 Robot Analysis Total 2 | . . . . . . . . 2 . . Derelict Logs Recovered 2 | . . . . 2 . . . . . . Drone Launches 2 | . . . . . . . . . . 2 Drone Recoveries 1 | . . . . . . . . . . 1 Exploration | -11 -10 -10 -9 -9 -9 -8 -8 -8 -8 -6 ------------- Run | Yrd Mat Min Mat Min Exi Min Mat Sto Rec Fac Turns Passed 6510 | 89 682 259 365 498 377 309 817 842 481 1791 Spaces Moved 3729 | 70 534 203 275 330 256 150 381 392 389 749 Core 24 | 3 . . . . . . . . . 21 Treads 151 | . . . 5 . . . 146 . . . Legs 1089 | . . . . . . . . 138 389 562 Wheels 2465 | 67 534 203 270 330 256 150 235 254 . 166 Hover . | . . . . . . . . . . . Flight . | . . . . . . . . . . . Fastest Speed 50 | 50 90 105 93 130 145 145 97 97 120 50 Average Speed 132 | 97 94 105 106 140 145 145 141 109 120 185 Slowest Speed 260 | 100 105 105 240 145 145 145 245 190 120 260 Overloaded Moves . | . . . . . . . . . . . Propulsion Burnouts . | . . . . . . . . . . . Robots Hopped . | . . . . . . . . . . . Potential Cave-ins . | . . . . . . . . . . . Cave-ins Triggered . | . . . . . . . . . . . Exploration Rate (%) 42 | 5 93 52 25 49 60 19 36 44 55 25 Regions Visited 10 Branch Regions 6 Pre-discovered Areas 2 | . . . . 1 1 . . . . . Known Exits Taken 4 | . . . 1 . . . 1 1 1 . Unknown Exits Taken 6 | 1 1 1 . 1 1 1 . . . . Scrap Searched 1 | . . 1 . . . . . . . . Spaces Dug 54 | . . . . . . . 19 6 . 29 Terrain Destroyed 237 | . 2 6 . 10 . 7 114 62 . 36 Melee 43 | . . . . . . . 9 6 . 28 Projectile 11 | . . . . . . 1 2 . . 8 AOE 183 | . 2 6 . 10 . 6 103 56 . . Terrain Rammed . | . . . . . . . . . . . Walls Destroyed . | . . . . . . . . . . . Machines Disabled . | . . . . . . . . . . . Actions | -11 -10 -10 -9 -9 -9 -8 -8 -8 -8 -6 --------- Run | Yrd Mat Min Mat Min Exi Min Mat Sto Rec Fac Total 4832 | 82 634 226 335 359 262 204 567 715 404 1044 Wait 463 | . 23 10 20 22 3 13 37 186 13 136 Move 3719 | 69 533 202 274 329 255 149 380 391 388 749 Hop . | . . . . . . . . . . . Pick Up 85 | 3 13 . 8 4 1 7 17 14 1 17 Fast Attach 48 | 7 2 . 5 . . 4 9 13 . 8 Attach 30 | . 1 . 4 . . 1 9 7 . 8 Detach 4 | . . . . . . . 1 1 . 2 Swap 59 | 1 8 2 4 1 1 4 12 12 1 13 Drop 94 | . 8 . 12 . 2 6 20 22 1 23 Fire 199 | 2 39 12 8 3 . 20 57 18 . 40 Melee 131 | . 7 . . . . . 25 51 . 48 Ram . | . . . . . . . . . . . Kick . | . . . . . . . . . . . Crush . | . . . . . . . . . . . Escape Stasis . | . . . . . . . . . . . Rewire . | . . . . . . . . . . . Trap . | . . . . . . . . . . . Miscellaneous . | . . . . . . . . . . . Route ------- -11/Scrapyard -10/Materials (discovered 4 exits: *Mat x2 / [*Min x2]) -10/Mines -9/Materials (discovered 2 exits: *Min x2) -9/Mines (discovered 2 exits: *Mat / *Exi) -9/Exiles -8/Mines -8/Materials -8/Storage -8/Recycling -6/Factory History --------- Turn | Location | Event 17 | -11/Scrapyard | Discovered new exit (range 15) 90 | -11/Scrapyard | Entered Materials 213 | -10/Materials | Discovered new exit (range 15) 223 | -10/Materials | Discovered new exit (range 15) 323 | -10/Materials | Build established: Mutant 490 | -10/Materials | Discovered new exit (range 14) 564 | -10/Materials | Discovered new exit (range 15) 772 | -10/Materials | Entered Mines 792 | -10/Mines | Met a Derelict bent on vengeance 1007 | -10/Mines | Discovered new exit (range 11) 1013 | -10/Mines | Assisted by bots powering up and referring to "LRC-V3" 1031 | -10/Mines | Entered Materials 1031 | -9/Materials | Accompanied by 3 allies 1031 | -9/Materials | Evolved 2 slots: Propulsion x1, Utility x1 1254 | -9/Materials | Identified exit to Mines 1267 | -9/Materials | Central database locked down 1396 | -9/Materials | Entered Mines 1396 | -9/Mines | Accompanied by 2 allies 1436 | -9/Mines | Learned location of Storage (-8) 1445 | -9/Mines | Received a Mining Laser from a helpful Derelict 1684 | -9/Mines | Received a Rocket Launcher from a helpful Derelict 1736 | -9/Mines | Learned Materials stockpile data 1787 | -9/Mines | Discovered new exit (range 11) 1789 | -9/Mines | Met a Derelict testing a Signal Generator 1835 | -9/Mines | Deemed a non-threat by the Exiles lab entrance 1836 | -9/Mines | Discovered new exit (range 5) 1894 | -9/Mines | Entered Exiles 1894 | -9/Exiles | Accompanied by 1 ally 1932 | -9/Exiles | Met 8R-AWN 1957 | -9/Exiles | Met EX-HEX 2026 | -9/Exiles | Met EX-BIN 2122 | -9/Exiles | Met EX-DEC 2132 | -9/Exiles | Learned location of Zion (-6) 2252 | -9/Exiles | Discovered new exit (range 12) 2271 | -9/Exiles | Entered Mines 2271 | -8/Mines | Accompanied by 1 ally 2458 | -8/Mines | Discovered new exit (range 13) 2580 | -8/Mines | Entered Materials 2580 | -8/Materials | Evolved 2 slots: Propulsion x1, Utility x1 2667 | -8/Materials | Discovered new exit (range 15) 2837 | -8/Materials | Identified exit to Storage 2897 | -8/Materials | Destroyed 8 combat bots 3071 | -8/Materials | Core integrity fell below 50% 3105 | -8/Materials | Lost 4 parts (1p2n1w) 3336 | -8/Materials | Build established: Scavenger-Mutant 3397 | -8/Materials | Entered Storage 3398 | -8/Storage | Garrison activated, responded to threat 3445 | -8/Storage | Repaired Plasma Cutter 3609 | -8/Storage | Destroyed 9 combat bots 3644 | -8/Storage | Met a pair of Derelict thieves 3797 | -8/Storage | First assault squad dispatched 3947 | -8/Storage | Destroyed 7 combat bots 3948 | -8/Storage | Lost 5 parts (1p2n1u1w) 4203 | -8/Storage | Assisted by bots powering up and referring to "LRC-V3" 4209 | -8/Storage | Used back door to open Recycling access 4209 | -8/Storage | Discovered new exit (range 4) 4211 | -8/Storage | Identified exit to Recycling 4239 | -8/Storage | Entered Recycling 4239 | -8/Recycling | Accompanied by 10 allies 4474 | -8/Recycling | Build established: Commander-Gladiator 4651 | -8/Recycling | Discovered new exit (range 9) 4663 | -8/Recycling | Identified exit to Factory 4720 | -8/Recycling | Entered Factory 4720 | -6/Factory | Accompanied by 10 allies 4720 | -6/Factory | Evolved 4 slots: Utility x4 5171 | -6/Factory | Build established: Commander-Assassin 5936 | -6/Factory | Build established: Scavenger-Assassin 6328 | -6/Factory | Fabricated Cargo Storage Unit (x1) 6511 | -6/Factory | Self-destructed Last Messages --------------- 06487_ K-01 Serf destroyed. 06491_ U-05 Engineer builds a Wall. 06491_ K-01 Serf collects debris. 06495_ Wheel destroyed. 06495_ Lyr. Medium Armor Plating destroyed. 06496_ U-05 Engineer builds a Wall. 06497_ U-05 Engineer lays Concrete. 06498_ Dropped Huge Storage Unit. 06498_ U-05 Engineer lays Concrete. 06498_ Dropped Fission Core. 06498_ K-01 Serf collects debris. 06499_ U-05 Engineer destroyed. 06499_ Dropped Aluminum Leg. 06499_ R-10 Processor collects Carbon-fiber Leg. 06499_ U-05 Engineer lays Concrete. 06499_ Dropped Imp. Utility Shielding. 06500_ U-05 Engineer lays Concrete. 06501_ U-05 Engineer destroyed. 06501_ U-05 Engineer lays Concrete. 06501_ K-01 Serf collects debris. Map ----- +----------------------------------------------------+ | ????"""""" #? #??????????????????????????????? | | ??# """""" / #??????????????????????????????? | | ??# """""" # #??????????????????????????????? | | ??# """""" # #??????????????????????????????? | | ???? # #??????????????????????????????? | | ?????? # #????? ???????????????????????? | | ### ?? ! # #??? ! ???????????????????????? | | ##########"## # ???????????????????????? | | ############# # ???????????????????????? | | *% = + ??????????????????????????? | | * # ??????????????????????? | | % + ??????????????????????? | | % # ??????????????????????? | | ####### ##### # ?????????????????????????????? | | ####### ##### # ?????????????????????????????? | | ???##?#%##??# ##?????????????????????????????? | | #######/##### ###############????????????????? | | !*[! = #|! # #????????????????? | | !%*% #*!!* # """ """ """ #????????????????? | | |% * #%!*! # """ """ """ #????????????????? | | ==| #!*!!*# """ """ """ #????????????????? | | ! =| =!*!!!# #????????????????? | | |]|]!=gg""" """ """ #????????????????? | | """ "!!|! # """ """ """ #????????????????? | | "" " #g""" """ """ #????????????????? | | "" " # @ #????????????????? | | """ " # #????????????????? | | " ###############????????????????? | | # +?????????????????????????????? | | ####### ##### ##?????????????????????????????? | | ??????##????# #??????????????????????????????? | | ????????????# #??????????????????????????????? | | ????????????# #??????????????????????????????? | | ????????????### ###??????????????????????????????? | | ?#????????????# ?????????????????????????????????? | | ??????????????# ?????????????????????????????????? | | ??????????????# ?????????????????????????????????? | | ??????????????? ?????????????????????????????????? | | ?????????????????????????????????????????????????? | | ?????????????????????????????????????????????????? | | #????????????????????????????????????????????????? | | ?????????????????????????????????????????????????? | | ?????????????????????????????????????????????????? | | ?????????????????????????????????????????????????? | | ?????????????????????????????????????????????????? | | ?????????????????????????????????????????????????? | | ?????????????????????????????????????????????????? | | ?????????????????????????????????????????????????? | | ?????????????????????????????????????????????????? | | ?????????????????????????????????????????????????? | +----------------------------------------------------+ Best States ------------- Heat Dissipation 37 Energy Generation 18 Energy Capacity 310 Matter Stores 300 Matter Capacity 300 Sight Range 16 Robot Scan Range 16 Terrain Scan Range 20 Terrain Scan Density 10 Armor Coverage 225 Core Shielding 20 Utility Shielding 66 Weapon Shielding 33 Evasion (%) 55 Targeting Accuracy 8 Melee Accuracy 8 Recoil Reduction 4 Offensive Hacking 20 Defensive Hacking 10 Item Schematics ----------------- Cargo Storage Unit | -10/Materials | Hacked Plasma Cutter | -9/Materials | Hacked Robot Schematics ------------------ M-13 Machinist | -9/Materials | Hacked Fabricated ------------ Cargo Storage Unit | x1 | -6/Factory Repaired ---------- Plasma Cutter | 50% | -8/Storage Studied --------- None Alien Tech Used ----------------- None Achievements -------------- None Challenges ------------ None Game ------ Seed BorgParticleBlade Manual? 0 Play Time 01:01:28 Cumulative 117.2 hours Start 2026.02.26 @ 03:57:31 End 2026.02.26 @ 06:53:51 Sessions 3 Manual Loads 0 Difficulty Rogue Special Mode None Game No. 170 Rogue 170 Adventurer 0 Explorer 0 Win Type - Total 0 Types 0/0/0/0/0/0/0/0/0/0 Lore% 33 Gallery% 45 Achievement% 36 Wizard Run 0 Options --------- Layout 1 ASCII 0 Keyboard 0 Movement Mouse Keybinds 0 Fullscreen 2 Font 24/Smallcaps Map View 50x35 Zoom Use 25% Tactical HUD 1 Map Filters NONE Filters NONE Steam 1 RUN: 5f184586-b3f0-44f8-91ad-f1868293d7be